fUSD/lending_fUSD_20250204
["ID","MTS","AMOUNT","RATE_DAILY","PERIOD"]
[351591742,1738651863961,-500.0,8.864e-05,2]
[351591743,1738651863983,-1221.1,8.864e-05,2]
[351591744,1738651864003,-1301.56,8.864e-05,2]
[351591745,1738651864021,-500.0,8.864e-05,2]
[351591746,1738651864040,-500.0,8.864e-05,2]
[351591747,1738651864062,-500.0,8.864e-05,2]
[351591748,1738651864087,-869.74,8.864e-05,2]
[351591749,1738651864116,-500.0,8.864e-05,2]
[351591750,1738651864145,-1267.25,8.864e-05,2]
[351591751,1738651864171,-500.0,8.864e-05,2]
[351591752,1738651864188,-500.80734416,8.864e-05,2]
[351591753,1738651864208,-500.0,8.864e-05,2]
[351591754,1738651864222,-500.0,8.864e-05,2]
[351591755,1738651864244,-501.38879004,8.864e-05,2]
[351591756,1738651864261,-500.0,8.864e-05,2]
[351591757,1738651864279,-1350.38,8.864e-05,2]
[351591758,1738651864296,-1376.69,8.864e-05,2]
[351591759,1738651864313,-518.57769862,8.864e-05,2]
[351591760,1738651864332,-765.49,8.864e-05,2]
[351591761,1738651864350,-500.0,8.864e-05,2]
[351591762,1738651864367,-500.0,8.864e-05,2]
[351591763,1738651864384,-500.0,8.864e-05,2]
[351591764,1738651864402,-500.0,8.864e-05,2]
[351591765,1738651864419,-500.0,8.864e-05,2]
[351591766,1738651864434,-500.0,8.864e-05,2]
[351591767,1738651864452,-500.0,8.864e-05,2]
[351591768,1738651864470,-1594.6,8.864e-05,2]
[351591769,1738651864488,-1384.45,8.864e-05,2]
[351591770,1738651864504,-2328.86,8.864e-05,2]
[351591771,1738651864521,-662.7,8.864e-05,2]
[351591772,1738651864538,-500.0,8.864e-05,2]
[351591773,1738651864554,-512.45148095,8.864e-05,2]
[351591774,1738651864570,-1335.29,8.864e-05,2]
[351591775,1738651864586,-500.0,8.864e-05,2]
[351591776,1738651864602,-500.0,8.864e-05,2]
[351591777,1738651864620,-500.0,8.864e-05,2]
[351591778,1738651864642,-500.0,8.864e-05,2]
[351591779,1738651864658,-506.82707803,8.864e-05,2]
[351591780,1738651864675,-659.98,8.864e-05,2]
[351591781,1738651864691,-500.0,8.864e-05,2]
[351591782,1738651864708,-318.47922451,8.864e-05,2]
[351591783,1738651864724,-2449.75,8.864e-05,2]
[351591784,1738651864740,-500.0,8.864e-05,2]
[351591785,1738651864761,-612.87,8.864e-05,2]
[351591786,1738651864778,-1097.71,8.864e-05,2]
[351591787,1738651864795,-502.27817754,8.864e-05,2]
[351591788,1738651864813,-710.91,8.864e-05,2]
[351591789,1738651864830,-500.0,8.864e-05,2]
[351591790,1738651864847,-500.0,8.864e-05,2]
[351591791,1738651864864,-543.58,8.864e-05,2]
[351591792,1738651864880,-500.0,8.864e-05,2]
[351591793,1738651864896,-1882.1,8.864e-05,2]
[351591794,1738651864914,-500.0,8.864e-05,2]
[351591795,1738651864931,-2099.03,8.864e-05,2]
[351591796,1738651864948,-500.0,8.864e-05,2]
[351591797,1738651864966,-500.0,8.864e-05,2]
[351591798,1738651864986,-698.47,8.864e-05,2]
[351591799,1738651865021,-500.0,8.864e-05,2]
[351591800,1738651865042,-500.0,8.864e-05,2]
[351591801,1738651865060,-500.0,8.864e-05,2]
[351591802,1738651865079,-500.0,8.864e-05,2]
[351591803,1738651865102,-613.08,8.864e-05,2]
[351591804,1738651865132,-1113.29,8.864e-05,2]
[351591805,1738651865150,-509.94933609,8.864e-05,2]
[351591806,1738651865168,-500.0,8.864e-05,2]
[351591807,1738651865187,-500.0,8.864e-05,2]
[351591808,1738651865204,-500.0,8.864e-05,2]
[351591809,1738651865220,-1797.38,8.864e-05,2]
[351591810,1738651865237,-500.0,8.864e-05,2]
[351591811,1738651865254,-500.0,8.864e-05,2]
[351591812,1738651865276,-507.97889287,8.864e-05,2]
[351591813,1738651865292,-739.28,8.864e-05,2]
[351591814,1738651865309,-500.0,8.864e-05,2]
[351591815,1738651865326,-500.0,8.864e-05,2]
[351591816,1738651865343,-1290.62,8.864e-05,2]
[351591817,1738651865360,-500.0,8.864e-05,2]
[351591818,1738651865377,-500.0,8.864e-05,2]
[351591819,1738651865392,-500.0,8.864e-05,2]
[351591820,1738651865407,-500.0,8.864e-05,2]
[351591821,1738651865422,-500.0,8.864e-05,2]
[351591822,1738651865438,-500.0,8.864e-05,2]
[351591823,1738651865455,-500.0,8.864e-05,2]
[351591824,1738651865471,-500.0,8.864e-05,2]
[351591825,1738651865488,-1811.38,8.864e-05,2]
[351591826,1738651865504,-500.0,8.864e-05,2]
[351591827,1738651865524,-500.0,8.864e-05,2]
[351591828,1738651865541,-631.18,8.864e-05,2]
[351591829,1738651865558,-1254.13,8.864e-05,2]
[351591830,1738651865575,-500.0,8.864e-05,2]
[351591831,1738651865591,-500.0,8.864e-05,2]
[351591832,1738651865607,-1097.17,8.864e-05,2]
[351591833,1738651865623,-991.82,8.864e-05,2]
[351591834,1738651865639,-502.52698438,8.864e-05,2]
[351591835,1738651865655,-500.0,8.864e-05,2]
[351591836,1738651865671,-500.0,8.864e-05,2]
[351591837,1738651865688,-500.0,8.864e-05,2]
[351591838,1738651865704,-500.0,8.864e-05,2]
[351591839,1738651865721,-627.77,8.864e-05,2]
[351591840,1738651865738,-500.0,8.864e-05,2]
[351591841,1738651865754,-500.0,8.864e-05,2]
[351591842,1738651865975,-500.0,8.864e-05,2]
[351591843,1738651865988,-500.0,8.864e-05,2]
[351591844,1738651865997,-500.0,8.864e-05,2]
[351591845,1738651866011,-500.0,8.864e-05,2]
[351591846,1738651866021,-1787.47,8.864e-05,2]
[351591847,1738651866032,-2221.8,8.864e-05,2]
[351591848,1738651866042,-508.63966211,8.864e-05,2]
[351591849,1738651866053,-804.27,8.864e-05,2]
[351591850,1738651866063,-501.43170998,8.864e-05,2]
[351591851,1738651866073,-1583.7,8.864e-05,2]
[351591852,1738651866084,-1310.71,8.864e-05,2]
[351591853,1738651866094,-197.76807923,8.864e-05,2]
[351591854,1738651866104,-500.0,8.864e-05,2]
[351591855,1738651866117,-500.0,8.864e-05,2]
[351591856,1738651866126,-500.0,8.864e-05,2]
[351591857,1738651866136,-3296.39,8.864e-05,2]
[351591858,1738651866147,-500.0,8.864e-05,2]
[351591859,1738651866158,-562.33,8.864e-05,2]
[351591860,1738651866168,-500.0,8.864e-05,2]
[351591861,1738651866178,-790.63,8.864e-05,2]
[351591862,1738651866188,-1182.99,8.864e-05,2]
[351591863,1738651866198,-1297.64,8.864e-05,2]
[351591864,1738651866208,-500.0,8.864e-05,2]
[351591865,1738651866218,-774.54,8.864e-05,2]
[351591866,1738651866228,-500.0,8.864e-05,2]
[351591867,1738651866237,-727.93,8.864e-05,2]
[351591868,1738651866248,-500.0,8.864e-05,2]
[351591869,1738651866261,-500.0,8.864e-05,2]
[351591870,1738651866271,-500.0,8.864e-05,2]
[351591871,1738651866282,-1926.99,8.864e-05,2]
[351591872,1738651866293,-500.0,8.864e-05,2]
[351591873,1738651866304,-500.0,8.864e-05,2]
[351591874,1738651866315,-1409.12,8.864e-05,2]
[351591875,1738651866326,-500.59739225,8.864e-05,2]
[351591876,1738651866337,-500.0,8.864e-05,2]
[351591877,1738651866348,-500.0,8.864e-05,2]
[351591878,1738651866358,-500.0,8.864e-05,2]
[351591879,1738651866369,-1967.91,8.864e-05,2]
[351591880,1738651866379,-1137.79,8.864e-05,2]
[351591881,1738651866390,-500.0,8.864e-05,2]
[351591882,1738651866401,-500.0,8.864e-05,2]
[351591883,1738651866411,-500.0,8.864e-05,2]
[351591884,1738651866421,-500.0,8.864e-05,2]
[351591885,1738651866431,-500.0,8.864e-05,2]
[351591886,1738651866440,-500.0,8.864e-05,2]
[351591887,1738651866450,-500.0,8.864e-05,2]
[351591888,1738651866459,-1241.55,8.864e-05,2]
[351591889,1738651866469,-500.0,8.864e-05,2]
[351591890,1738651866479,-500.0,8.864e-05,2]
[351591891,1738651866490,-500.0,8.864e-05,2]
[351591892,1738651866500,-582.03,8.864e-05,2]
[351591893,1738651866514,-500.0,8.864e-05,2]
[351591894,1738651866524,-500.0,8.864e-05,2]
[351591895,1738651866535,-500.0,8.864e-05,2]
[351591896,1738651866545,-500.52131998,8.864e-05,2]
[351591897,1738651866555,-500.0,8.864e-05,2]
[351591898,1738651866565,-500.0,8.864e-05,2]
[351591899,1738651866574,-2472.38,8.864e-05,2]
[351591900,1738651866584,-500.0,8.864e-05,2]
[351591901,1738651866593,-500.0,8.864e-05,2]
[351591902,1738651866604,-500.0,8.864e-05,2]
[351591903,1738651866619,-551.09,8.864e-05,2]
[351591904,1738651866635,-500.0,8.864e-05,2]
[351591905,1738651866650,-1439.06,8.864e-05,2]
[351591906,1738651866663,-226.78603687,8.864e-05,2]
[351591907,1738651866673,-500.0,8.864e-05,2]
[351591908,1738651866682,-501.25391128,8.864e-05,2]
[351591909,1738651866691,-500.0,8.864e-05,2]
[351591910,1738651866703,-1487.13,8.864e-05,2]
[351591911,1738651866716,-500.0,8.864e-05,2]
[351591912,1738651866730,-501.06278111,8.864e-05,2]
[351591913,1738651866745,-500.0,8.864e-05,2]
[351591914,1738651866763,-1607.5,8.864e-05,2]
[351591915,1738651866774,-3353.26,8.864e-05,2]
[351591916,1738651866785,-500.0,8.864e-05,2]
[351591917,1738651866796,-501.97334684,8.864e-05,2]
[351591918,1738651866808,-500.0,8.864e-05,2]
[351591919,1738651866819,-500.0,8.864e-05,2]
[351591920,1738651866830,-500.0,8.864e-05,2]
[351591921,1738651866840,-500.0,8.864e-05,2]
[351591922,1738651866850,-500.0,8.864e-05,2]
[351591923,1738651866860,-1710.03,8.864e-05,2]
[351591924,1738651866873,-500.0,8.864e-05,2]
[351591925,1738651866884,-678.92,8.864e-05,2]
[351591926,1738651866895,-500.0,8.864e-05,2]
[351591927,1738651866906,-500.0,8.864e-05,2]
[351591928,1738651866917,-500.0,8.864e-05,2]
[351591929,1738651866928,-1755.84,8.864e-05,2]
[351591930,1738651866939,-500.78957975,8.864e-05,2]
[351591931,1738651866953,-500.0,8.864e-05,2]
[351591932,1738651866971,-2208.53,8.864e-05,2]
[351591933,1738651866982,-500.0,8.864e-05,2]
[351591934,1738651866992,-762.71,8.864e-05,2]
[351591935,1738651867003,-500.0,8.864e-05,2]
[351591936,1738651867019,-562.92,8.864e-05,2]
[351591937,1738651867029,-2000.55,8.864e-05,2]
[351591938,1738651867040,-521.56,8.864e-05,2]
[351591939,1738651867051,-1457.81,8.864e-05,2]
[351591940,1738651867061,-665.54,8.864e-05,2]
[351591941,1738651867071,-1064.1,8.864e-05,2]
[351591942,1738651867081,-500.0,8.864e-05,2]
[351591943,1738651867092,-500.0,8.864e-05,2]
[351591944,1738651867102,-500.0,8.864e-05,2]
[351591945,1738651867115,-3252.58,8.864e-05,2]
[351591946,1738651867127,-369.01304665,8.864e-05,2]
[351591947,1738651867136,-500.0,8.864e-05,2]
[351591948,1738651867151,-500.0,8.864e-05,2]
[351591949,1738651867173,-500.0,8.864e-05,2]
[351591950,1738651867196,-774.04,8.864e-05,2]
[351591951,1738651867221,-500.0,8.864e-05,2]
[351591952,1738651867243,-500.0,8.864e-05,2]
[351591953,1738651867264,-1356.21,8.864e-05,2]
[351591954,1738651867276,-500.0,8.864e-05,2]
[351591955,1738651867287,-500.0,8.864e-05,2]
[351591956,1738651867298,-500.0,8.864e-05,2]
[351591957,1738651867308,-1161.1,8.864e-05,2]
[351591958,1738651867318,-207.34788934,8.864e-05,2]
[351591959,1738651867329,-591.44175845,8.864e-05,2]
[351591960,1738651867340,-398.05576274,8.864e-05,2]
[351591961,1738651867351,-500.0,8.864e-05,2]
[351591962,1738651867363,-1271.77,8.864e-05,2]
[351591963,1738651867374,-1243.17,8.864e-05,2]
[351591964,1738651867383,-452.5943462,8.864e-05,2]
[351591965,1738651867394,-500.0,8.864e-05,2]
[351591966,1738651867403,-503.70526632,8.864e-05,2]
[351591967,1738651867413,-810.41,8.864e-05,2]
[351591968,1738651867423,-500.0,8.864e-05,2]
[351591969,1738651867431,-1701.57,8.864e-05,2]
[351591970,1738651867440,-500.0,8.864e-05,2]
[351591971,1738651867449,-500.0,8.864e-05,2]
[351591972,1738651867459,-500.0,8.864e-05,2]
[351591973,1738651867467,-1227.61,8.864e-05,2]
[351591974,1738651867476,-1258.33,8.864e-05,2]
[351591975,1738651867484,-307.04808794,8.864e-05,2]
[351591976,1738651867493,-500.0,8.864e-05,2]
[351591977,1738651867502,-500.0,8.864e-05,2]
[351591978,1738651867513,-533.93,8.864e-05,2]
[351591979,1738651867521,-500.0,8.864e-05,2]
[351591980,1738651867531,-500.0,8.864e-05,2]
[351591981,1738651867539,-500.0,8.864e-05,2]
[351591982,1738651867548,-1867.62,8.864e-05,2]
[351591983,1738651867556,-500.0,8.864e-05,2]
[351591984,1738651867564,-500.0,8.864e-05,2]
[351591985,1738651867572,-500.0,8.864e-05,2]
[351591986,1738651867579,-500.0,8.864e-05,2]
[351591987,1738651867589,-2414.87,8.864e-05,2]
[351591988,1738651867598,-500.9579845,8.864e-05,2]
[351591989,1738651867608,-1692.34,8.864e-05,2]
[351591990,1738651867617,-974.44,8.864e-05,2]
[351591991,1738651867627,-2119.85,8.864e-05,2]
[351591992,1738651867638,-500.0,8.864e-05,2]
[351591993,1738651867648,-500.0,8.864e-05,2]
[351591994,1738651867658,-500.0,8.864e-05,2]
[351591995,1738651867668,-500.0,8.864e-05,2]
[351591996,1738651867678,-500.0,8.864e-05,2]
[351591997,1738651867691,-608.12,8.864e-05,2]
[351591998,1738651867701,-500.0,8.864e-05,2]
[351591999,1738651867711,-500.0,8.864e-05,2]
[351592000,1738651867722,-500.0,8.864e-05,2]
[351592001,1738651867732,-706.35,8.864e-05,2]
[351592002,1738651867743,-980.64,8.864e-05,2]
[351592003,1738651867753,-506.86729154,8.864e-05,2]
[351592004,1738651867764,-557.68,8.864e-05,2]
[351592005,1738651867774,-500.0,8.864e-05,2]
[351592006,1738651867784,-1544.16,8.864e-05,2]
[351592007,1738651867795,-1127.81,8.864e-05,2]
[351592008,1738651867805,-500.0,8.864e-05,2]
[351592009,1738651867816,-500.0,8.864e-05,2]
[351592010,1738651867826,-842.89,8.864e-05,2]
[351592011,1738651867837,-962.28,8.864e-05,2]
[351592012,1738651867847,-500.0,8.864e-05,2]
[351592013,1738651867857,-583.68,8.864e-05,2]
[351592014,1738651867875,-596.37256459,8.864e-05,2]
[351592015,1738651867886,-880.05,8.864e-05,2]
[351592016,1738651867898,-1664.57,8.864e-05,2]
[351592017,1738651867908,-500.0,8.864e-05,2]
[351592018,1738651867918,-500.0,8.864e-05,2]
[351592019,1738651867929,-1460.87,8.864e-05,2]
[351592020,1738651867940,-537.15,8.864e-05,2]
[351592021,1738651867951,-2650.59,8.864e-05,2]
[351592022,1738651867962,-1032.75,8.864e-05,2]
[351592023,1738651867972,-500.0,8.865e-05,2]
[351592024,1738651867983,-500.0,8.865e-05,2]
[351592025,1738651867993,-500.0,8.865e-05,2]
[351592026,1738651868004,-500.0,8.865e-05,2]
[351592027,1738651868016,-500.0,8.865e-05,2]
[351592028,1738651868026,-500.0,8.865e-05,2]
[351592029,1738651868036,-500.0,8.865e-05,2]
[351592030,1738651868045,-500.0,8.865e-05,2]
[351592031,1738651868055,-500.0,8.865e-05,2]
[351592032,1738651868066,-202.97716328,8.865e-05,2]
[351592033,1738651868076,-169.67280354,8.865e-05,2]
[351592034,1738651868087,-500.0,8.865e-05,2]
[351592035,1738651868099,-500.0,8.865e-05,2]
[351592036,1738651868112,-500.0,8.865e-05,2]
[351592037,1738651868123,-500.0,8.865e-05,2]
[351592038,1738651868135,-502.73505073,8.865e-05,2]
[351592039,1738651868147,-500.0,8.865e-05,2]
[351592040,1738651868159,-500.0,8.865e-05,2]
[351592041,1738651868170,-300.74954702,8.865e-05,2]
[351592042,1738651868180,-500.0,8.865e-05,2]
[351592043,1738651868190,-406.09550888,8.865e-05,2]
[351592044,1738651868200,-501.27978993,8.865e-05,2]
[351592045,1738651868211,-500.0,8.865e-05,2]
[351592046,1738651868221,-500.61120276,8.865e-05,2]
[351592047,1738651868231,-500.0,8.865e-05,2]
[351592048,1738651868240,-619.24777064,8.865e-05,2]
[351592049,1738651868250,-500.0,8.865e-05,2]
[351592050,1738651868265,-500.0,8.865e-05,2]
[351592051,1738651868275,-500.0,8.865e-05,2]
[351592052,1738651868287,-500.0,8.865e-05,2]
[351592053,1738651868298,-500.0,8.865e-05,2]
[351592054,1738651868309,-500.0,8.865e-05,2]
[351592055,1738651868319,-500.0,8.865e-05,2]
[351592056,1738651868331,-500.0,8.865e-05,2]
[351592057,1738651868341,-500.0,8.865e-05,2]
[351592058,1738651868351,-500.0,8.865e-05,2]
[351592059,1738651868361,-500.0,8.865e-05,2]
[351592060,1738651868529,-500.0,8.865e-05,2]
[351592061,1738651868540,-500.0,8.865e-05,2]
[351592062,1738651868549,-500.0,8.865e-05,2]
[351592063,1738651868556,-500.3484024,8.865e-05,2]
[351592064,1738651868563,-500.0,8.865e-05,2]
[351592065,1738651868571,-500.0,8.865e-05,2]
[351592066,1738651868578,-500.60740079,8.865e-05,2]
[351592067,1738651868585,-1816.98,8.865e-05,2]
[351592068,1738651868595,-500.0,8.865e-05,2]
[351592069,1738651868605,-800.32,8.865e-05,2]
[351592070,1738651868614,-2661.74,8.865e-05,2]
[351592071,1738651868624,-3559.44,8.865e-05,2]
[351592072,1738651868634,-500.0,8.865e-05,2]
[351592073,1738651868643,-1000.2,8.865e-05,2]
[351592074,1738651868652,-1789.57,8.865e-05,2]
[351592075,1738651868662,-1346.06,8.865e-05,2]
[351592076,1738651868673,-500.0,8.865e-05,2]
[351592077,1738651868683,-500.0,8.865e-05,2]
[351592078,1738651868699,-500.0,8.865e-05,2]
[351592079,1738651868718,-1910.87,8.865e-05,2]
[351592080,1738651868731,-574.03,8.865e-05,2]
[351592081,1738651868744,-1533.37,8.865e-05,2]
[351592082,1738651868755,-1637.92,8.865e-05,2]
[351592083,1738651868769,-500.0,8.865e-05,2]
[351592084,1738651868781,-500.0,8.865e-05,2]
[351592085,1738651868793,-2100.89,8.865e-05,2]
[351592086,1738651868805,-1545.56,8.865e-05,2]
[351592087,1738651868818,-1220.82,8.865e-05,2]
[351592088,1738651868830,-1891.37,8.865e-05,2]
[351592089,1738651868841,-1353.58,8.865e-05,2]
[351592090,1738651868853,-500.0,8.865e-05,2]
[351592091,1738651868864,-1583.7,8.865e-05,2]
[351592092,1738651868875,-1547.3,8.865e-05,2]
[351592093,1738651868887,-1928.93,8.865e-05,2]
[351592094,1738651868897,-951.36,8.865e-05,2]
[351592095,1738651868909,-1905.83,8.865e-05,2]
[351592096,1738651868921,-2772.81,8.865e-05,2]
[351592097,1738651868933,-1936.34,8.865e-05,2]
[351592098,1738651868945,-1218.2,8.865e-05,2]
[351592099,1738651868957,-760.65,8.865e-05,2]
[351592100,1738651868970,-1833.02,8.865e-05,2]
[351592101,1738651868980,-1760.21,8.865e-05,2]
[351592102,1738651868990,-1969.26,8.865e-05,2]
[351592103,1738651869003,-557.17,8.865e-05,2]
[351592104,1738651869017,-2207.04,8.865e-05,2]
[351592105,1738651869028,-1067.3,8.865e-05,2]
[351592106,1738651869039,-1711.85,8.865e-05,2]
[351592107,1738651869049,-606.13,8.865e-05,2]
[351592108,1738651869060,-949.48,8.865e-05,2]
[351592109,1738651869069,-1026.18,8.865e-05,2]
[351592110,1738651869079,-579.86,8.865e-05,2]
[351592111,1738651869090,-991.53,8.865e-05,2]
[351592112,1738651869101,-1828.91,8.865e-05,2]
[351592113,1738651869114,-1160.19,8.865e-05,2]
[351592114,1738651869125,-500.0,8.865e-05,2]
[351592115,1738651869135,-1961.27,8.865e-05,2]
[351592116,1738651869146,-500.0,8.866e-05,2]
[351592117,1738651869160,-503.46,8.866e-05,2]
[351592118,1738651869172,-500.0,8.866e-05,2]
[351592119,1738651869185,-500.0,8.866e-05,2]
[351592120,1738651869195,-500.0,8.866e-05,2]
[351592121,1738651869204,-500.0,8.866e-05,2]
[351592122,1738651869214,-637.81,8.866e-05,2]
[351592123,1738651869227,-500.0,8.866e-05,2]
[351592124,1738651869238,-500.0,8.866e-05,2]
[351592125,1738651869250,-500.0,8.866e-05,2]
[351592126,1738651869262,-500.0,8.866e-05,2]
[351592127,1738651869271,-500.0,8.866e-05,2]
[351592128,1738651869281,-500.0,8.866e-05,2]
[351592129,1738651869292,-500.0,8.866e-05,2]
[351592130,1738651869303,-848.3,8.866e-05,2]
[351592131,1738651869315,-500.0,8.866e-05,2]
[351592132,1738651869327,-500.0,8.866e-05,2]
[351592133,1738651869338,-500.0,8.866e-05,2]
[351592134,1738651869347,-500.0,8.866e-05,2]
[351592135,1738651869357,-500.0,8.866e-05,2]
[351592136,1738651869367,-500.0,8.866e-05,2]
[351592137,1738651869379,-617.18,8.866e-05,2]
[351592138,1738651869393,-500.0,8.866e-05,2]
[351592139,1738651869404,-508.12,8.866e-05,2]
[351592140,1738651869414,-1325.81,8.866e-05,2]
[351592141,1738651869425,-500.0,8.866e-05,2]
[351592142,1738651869435,-500.0,8.866e-05,2]
[351592143,1738651869444,-500.0,8.866e-05,2]
[351592144,1738651869455,-667.07,8.866e-05,2]
[351592145,1738651869467,-500.0,8.866e-05,2]
[351592146,1738651869478,-500.0,8.866e-05,2]
[351592147,1738651869488,-500.0,8.866e-05,2]
[351592148,1738651869499,-500.0,8.866e-05,2]
[351592149,1738651869512,-1020.47,8.866e-05,2]
[351592150,1738651869523,-500.0,8.866e-05,2]
[351592151,1738651869534,-500.0,8.866e-05,2]
[351592152,1738651869545,-500.0,8.866e-05,2]
[351592153,1738651869556,-500.0,8.866e-05,2]
[351592154,1738651869567,-500.0,8.866e-05,2]
[351592155,1738651869579,-971.18,8.866e-05,2]
[351592156,1738651869590,-1055.22,8.866e-05,2]
[351592157,1738651869602,-601.82,8.866e-05,2]
[351592158,1738651869612,-568.09835497,8.866e-05,2]
[351592159,1738651869623,-500.0,8.866e-05,2]
[351592160,1738651869633,-500.0,8.866e-05,2]
[351592161,1738651869644,-500.0,8.866e-05,2]
[351592162,1738651869653,-500.0,8.866e-05,2]
[351592163,1738651869663,-584.0,8.866e-05,2]
[351592164,1738651869672,-500.0,8.866e-05,2]
[351592165,1738651869682,-664.68,8.866e-05,2]
[351592166,1738651869692,-500.0,8.866e-05,2]
[351592167,1738651869702,-693.7,8.866e-05,2]
[351592168,1738651869712,-500.0,8.866e-05,2]
[351592169,1738651869722,-500.0,8.866e-05,2]
[351592170,1738651869732,-500.0,8.866e-05,2]
[351592171,1738651869742,-500.0,8.866e-05,2]
[351592172,1738651869752,-500.0,8.866e-05,2]
[351592173,1738651869763,-910.68,8.866e-05,2]
[351592174,1738651869774,-500.0,8.866e-05,2]
[351592175,1738651869784,-949.48,8.866e-05,2]
[351592176,1738651869795,-500.0,8.866e-05,2]
[351592177,1738651869807,-253.45159614,8.866e-05,2]
[351592178,1738651869818,-500.0,8.866e-05,2]
[351592179,1738651869829,-500.0,8.866e-05,2]
[351592180,1738651869840,-649.65,8.866e-05,2]
[351592181,1738651869851,-737.64,8.866e-05,2]
[351592182,1738651869862,-500.0,8.866e-05,2]
[351592183,1738651869873,-500.0,8.866e-05,2]
[351592184,1738651869884,-500.0,8.866e-05,2]
[351592185,1738651869896,-500.0,8.866e-05,2]
[351592186,1738651869906,-585.58,8.866e-05,2]
[351592187,1738651869917,-500.0,8.866e-05,2]
[351592188,1738651869929,-500.0,8.866e-05,2]
[351592189,1738651869939,-500.0,8.866e-05,2]
[351592190,1738651869951,-500.0,8.866e-05,2]
[351592191,1738651869961,-500.0,8.866e-05,2]
[351592192,1738651869970,-500.0,8.866e-05,2]
[351592193,1738651869980,-500.0,8.866e-05,2]
[351592194,1738651869989,-500.0,8.866e-05,2]
[351592195,1738651869999,-502.67,8.866e-05,2]
[351592196,1738651870012,-500.0,8.866e-05,2]
[351592197,1738651870022,-708.74,8.866e-05,2]
[351592198,1738651870032,-500.0,8.866e-05,2]
[351592199,1738651870042,-500.0,8.866e-05,2]
[351592200,1738651870052,-500.0,8.866e-05,2]
[351592201,1738651870062,-500.0,8.866e-05,2]
[351592202,1738651870072,-500.0,8.866e-05,2]
[351592203,1738651870082,-621.2,8.866e-05,2]
[351592204,1738651870092,-1126.75,8.866e-05,2]
[351592205,1738651870108,-500.0,8.866e-05,2]
[351592206,1738651870119,-500.0,8.866e-05,2]
[351592207,1738651870131,-500.0,8.866e-05,2]
[351592208,1738651870142,-500.0,8.866e-05,2]
[351592209,1738651870155,-500.0,8.866e-05,2]
[351592210,1738651870166,-1267.09,8.866e-05,2]
[351592211,1738651870178,-500.0,8.866e-05,2]
[351592212,1738651870190,-500.92720975,8.866e-05,2]
[351592213,1738651870201,-1330.04,8.866e-05,2]
[351592214,1738651870213,-500.0,8.866e-05,2]
[351592215,1738651870225,-500.0,8.866e-05,2]
[351592216,1738651870236,-500.0,8.866e-05,2]
[351592217,1738651870246,-500.0,8.866e-05,2]
[351592218,1738651870260,-500.0,8.866e-05,2]
[351592219,1738651870271,-1686.16198458,8.866e-05,2]
[351592220,1738651870282,-893.25,8.866e-05,2]
[351592221,1738651870292,-500.0,8.866e-05,2]
[351592222,1738651870302,-500.0,8.866e-05,2]
[351592223,1738651870312,-500.0,8.866e-05,2]
[351592224,1738651870322,-522.19,8.866e-05,2]
[351592225,1738651870332,-741.38,8.866e-05,2]
[351592226,1738651870342,-556.41639013,8.866e-05,2]
[351592227,1738651870352,-500.0,8.866e-05,2]
[351592228,1738651870362,-1262.08,8.866e-05,2]
[351592229,1738651870372,-500.0,8.866e-05,2]
[351592230,1738651870382,-500.0,8.866e-05,2]
[351592231,1738651870391,-500.0,8.866e-05,2]
[351592232,1738651870402,-500.0,8.866e-05,2]
[351592233,1738651870412,-500.0,8.866e-05,2]
[351592234,1738651870423,-500.0,8.866e-05,2]
[351592235,1738651870435,-500.0,8.866e-05,2]
[351592236,1738651870447,-649.6,8.866e-05,2]
[351592237,1738651870458,-1136.55,8.866e-05,2]
[351592238,1738651870468,-500.0,8.866e-05,2]
[351592239,1738651870480,-500.0,8.866e-05,2]
[351592240,1738651870491,-706.95,8.866e-05,2]
[351592241,1738651870502,-500.0,8.866e-05,2]